Cogmind - Beta 14 *** ADVENTURER MODE // 2024.09.27 @ 19:13:59 Player: Knightshade Result: Destroyed by NN-2O2(R) with Subdweller Machine Gun Performance ------------- Evolutions (0) 0 Regions Visited (3) 600 Robots Destroyed (41) 205 Value Destroyed (920) 920 Prototype IDs (4) 80 Alien Tech Used (0) 0 Bonus (0) 0 TOTAL SCORE: 1805 Bonus ------- None Cogmind --------- Core Integrity 0/250 Matter 229/300 Energy 200/200 System Corruption 0% Temperature Cool (0) Movement Rolling (145) Ox3 Location -10/Subcaves Parts ------- > --- POWER (1) -------- Subdweller Power Source > --- PROPULSION (2) --- Carbon-fiber Leg Compact Wheel > --- UTILITY (2) ------ High-capacity Storage Unit Makeshift Light Armor Plating > --- WEAPON (2) ------- Improved Light Cannon Improved Light Cannon > --- INVENTORY (20) --- Light Angular Momentum Engine Combat Airjet Improved Heat Sink Medium Storage Unit Machine Analyzer Seismic Detector Improved Light Armor Plating Improved Light Armor Plating Makeshift Hacking Suite Improved Trap Extractor (0/6) Recalibrator Shock Rifle Shock Rifle Beamcaster Assault Rifle Heavy Battle Rifle Subdweller Shrapnel Launcher Katana Peak State ------------ > --- POWER ------------ Subdweller Power Source > --- PROPULSION ------- Carbon-fiber Leg Compact Wheel > --- UTILITY ---------- High-capacity Storage Unit Makeshift Light Armor Plating > --- WEAPON ----------- Improved Light Cannon Improved Light Cannon > --- INVENTORY -------- Light Angular Momentum Engine Combat Airjet Improved Heat Sink Medium Storage Unit Machine Analyzer Seismic Detector ECM Suite Improved Light Armor Plating Improved Light Armor Plating Makeshift Hacking Suite Improved Trap Extractor Recalibrator Shock Rifle Shock Rifle Beamcaster Assault Rifle Heavy Battle Rifle Improved Light Cannon Subdweller Shrapnel Launcher Katana [Rating: 21] Favorites ----------- Power Ion Engine Engine Ion Engine Propulsion Light Treads Treads Light Treads Leg Carbon-fiber Leg Wheel Compact Wheel Utility High-capacity Storage Unit Device Seismic Detector Storage High-capacity Storage Unit Protection Makeshift Light Armor Plating Weapon Improved Light Cannon Ballistic Gun Assault Rifle Ballistic Cannon Improved Light Cannon Build | -11 -10 -10 -10 ------- Run | Yrd Mat Min Sub Slots Evolved . | . . . . Power . | . . . . Propulsion . | . . . . Utility . | . . . . Weapon . | . . . . Parts Attached 22 | 7 3 6 6 Power 4 | 1 . 1 2 Engine 4 | 1 . 1 2 Core . | . . . . Reactor . | . . . . Propulsion 6 | 2 . 3 1 Treads 2 | 2 . . . Leg 2 | . . 2 . Wheel 2 | . . 1 1 Hover . | . . . . Flight . | . . . . Utility 5 | 2 2 . 1 Device 1 | 1 . . . Storage 3 | 1 2 . . Processor . | . . . . Hackware . | . . . . Protection 1 | . . . 1 Artifact . | . . . . Weapon 7 | 2 1 2 2 Energy Gun . | . . . . Energy Cannon . | . . . . Ballistic Gun 3 | 2 1 . . Ballistic Cannon 4 | . . 2 2 Launcher . | . . . . Special Weapon . | . . . . Impact Weapon . | . . . . Slashing Weapon . | . . . . Piercing Weapon . | . . . . Special Melee Weapon . | . . . . Unidentified Prototypes . | . . . . Parts Lost 7 | . . 4 3 Power 2 | . . 2 . Propulsion 2 | . . 1 1 Utility . | . . . . Weapon 3 | . . 1 2 Highest Loss Streak 2 | . . 2 1 To Critical Strikes . | . . . . Average Slot Usage (%) 95 | . 100 91 97 Engine 9 | . 14 5 11 Treads 16 | . 28 14 . Leg 8 | . . 12 15 Wheel 2 | . . . 12 Device 12 | . 14 14 5 Storage 14 | . 14 14 14 Protection 1 | . . . 8 Ballistic Gun 9 | . 28 . . Ballistic Cannon 18 | . . 27 28 Peak Build Rating 21 | 7 9 17 21 Average Rating 12 | 5 8 14 19 On Entrance 8 | . 7 9 17 Naked Turns . | . . . . Heaviest Build 57 | 14 50 54 57 Greatest Support 40 | 40 40 40 30 Greatest Overweight (x) 3 | . 1 3 3 Average Overweight (x) 1 | . . 1 2 Largest Inventory Capacity 20 | 8 20 20 20 Average Capacity 19 | 7 18 20 20 Most Carried 20 | 4 13 20 20 Average Carried 14 | 1 8 18 19 Final Capacity 20 | 8 20 20 20 Final Carried 20 | 1 13 20 18 Class Distribution -------------------- 100% | Mutant Dominant Class ---------------- Mutant | -10/Materials Mutant | -10/Mines Mutant | -10/Subcaves Resources | -11 -10 -10 -10 ----------- Run | Yrd Mat Min Sub Matter Collected 1176 | 306 256 412 202 Remotely . | . . . . Salvage Created 1153 | 147 530 254 222 Parts 79 | 6 41 16 16 Haulers Intercepted 1 | . 1 . . Recyclers Shooed 1 | . 1 . . Parts Field Recycled . | . . . . Retrieved Matter . | . . . . Parts Self-Destructed 14 | . . . 14 Prevented . | . . . . Kills | -11 -10 -10 -10 ------- Run | Yrd Mat Min Sub Combat Hostiles Destroyed 31 | . 16 7 8 Guns 16 | . 16 . . Cannons 15 | . . 7 8 Classes Destroyed 11 | 2 5 1 3 Worker 3 | . 1 2 . Tunneler 4 | 3 . 1 . Hauler 1 | . 1 . . Recycler 3 | 1 . 2 . Watcher 1 | . 1 . . Swarmer 8 | . 8 . . Grunt 12 | . 8 4 . Sentry 1 | . . . 1 Artisan 1 | . . . 1 Subdweller 7 | . . . 7 Assembled 2 | . . 2 . Best Kill Streak 6 | 3 6 5 2 Combat Bots Only 6 | . 6 2 2 Max Kills in Single Turn 1 | 1 1 1 1 Gunslinging . | . . . . Exploded . | . . . . Melee . | . . . . Uniques/NPCs Destroyed 1 | . . 1 . YI-UF0 (-10/Mines) Combat | -11 -10 -10 -10 -------- Run | Yrd Mat Min Sub Hostile Shots Fired 179 | . 102 39 38 Missed 49 | . 28 12 9 Damage Taken 1432 | . 516 458 458 Core 260 | . 95 67 98 Absorbed by Shields . | . . . . Ignored by Resistances 438 | . 173 133 132 Regen/Repaired (Parts) 3 | . 3 . . Core Remaining (%) 100 | 100 . . . Volleys Fired 129 | 9 58 33 29 Largest 2 | 2 2 2 2 Hottest 78 | 40 40 78 78 Shots Fired 257 | 18 116 66 57 Gun 140 | 18 116 6 . Cannon 117 | . . 60 57 Launcher . | . . . . Special . | . . . . Kinetic 257 | 18 116 66 57 Thermal . | . . . . Explosive . | . . . . Electromagnetic . | . . . . Robot Hit Streak 28 | 9 17 16 28 Robot Miss Streak 4 | 1 4 3 2 Penetration Max . | . . . . Secondary Targets 2 | . 2 . . Max Gunslinging Chain 1 | . 1 . . Shots Hit Robots 193 | 16 84 46 47 Core Hits 63 | 6 26 15 16 Critical Kills . | . . . . Critical Parts Destroyed 2 | . 2 . . Critical Strikes 6 | . 2 3 1 Destroy 2 | . 2 . . Blast 4 | . . 3 1 Melee Attacks . | . . . . Impact . | . . . . Slashing . | . . . . Piercing . | . . . . Sneak Attacks . | . . . . Combat Hostiles . | . . . . Follow-up Attacks . | . . . . Damage Inflicted 3030 | 185 1010 930 905 Guns 1257 | 185 1010 62 . Cannons 1773 | . . 868 905 Explosions . | . . . . Melee . | . . . . Ramming . | . . . . Kinetic 3030 | 185 1010 930 905 Thermal . | . . . . Explosive . | . . . . Electromagnetic . | . . . . Impact . | . . . . Slashing . | . . . . Piercing . | . . . . Highest Corruption . | . . . . Average Corruption . | . . . . Corruption Purged . | . . . . Corruption Blocked . | . . . . Overload Shots . | . . . . Overflow Damage 3 | . . 3 . Projectiles 3 | . . 3 . Explosions . | . . . . Melee . | . . . . Knockbacks 15 | . . 9 6 Impact . | . . . . Kinetic 15 | . . 9 6 Secondary . | . . . . Self-Inflicted Damage . | . . . . Shots . | . . . . Rammed . | . . . . Targets Rammed . | . . . . Kicked . | . . . . Crushed . | . . . . Highest Temperature 162 | . 12 162 . Average Temperature 35 | . 5 38 . Received Heat Transfer 441 | . 189 141 111 Siege Activations . | . . . . Robots Corrupted . | . . . . Combat Hostiles . | . . . . Parts Fried . | . . . . Impact Corruptions . | . . . . Robots Melted . | . . . . Combat Hostiles . | . . . . Parts Melted . | . . . . Heat Transferred . | . . . . Parts Sabotaged . | . . . . Parts Stolen . | . . . . Parts Stripped . | . . . . Power Chain Reactions . | . . . . Alert | -11 -10 -10 -10 ------- Run | Yrd Mat Min Sub Peak Influence 295 | 20 295 193 . Initial 88 | . 11 88 . Average 57 | 10 87 38 . Maximum Alert Level 1 | . 1 . . Low Security (%) 91 | 100 80 100 . Level 1 8 | . 19 . . Level 2 . | . . . . Level 3 . | . . . . Level 4 . | . . . . Level 5 . | . . . . High Security . | . . . . Max Security . | . . . . Squads Dispatched 2 | . 2 . . Investigation 2 | . 2 . . Extermination . | . . . . Reinforcement . | . . . . Assault . | . . . . Garrison . | . . . . Intercept . | . . . . Searches Triggered . | . . . . Construction Impeded . | . . . . Haulers Reinforced . | . . . . Active Scanning Responses . | . . . . Cargo Convoy Interrupts . | . . . . Stealth | -11 -10 -10 -10 --------- Run | Yrd Mat Min Sub Distress Signals . | . . . . Communications Jammed . | . . . . Distress Signals . | . . . . Times Spotted 42 | . 24 8 10 Peak Tracking Total 6 | . 6 2 2 Tactical Retreats 2 | . 1 1 . Traps | -11 -10 -10 -10 ------- Run | Yrd Mat Min Sub Traps Triggered 2 | . . 2 . Indirectly . | . . . . Trap Hack Attempts . | . . . . Triggered . | . . . . Disarmed . | . . . . Reprogrammed . | . . . . Reused . | . . . . Traps Extracted . | . . . . Installed . | . . . . Triggered . | . . . . Machines | -11 -10 -10 -10 ---------- Run | Yrd Mat Min Sub Machines Disabled . | . . . . Max in Single Turn . | . . . . Machines Repaired . | . . . . Machines Dismantled . | . . . . Machines Sabotaged . | . . . . Overloaded Fab Kills . | . . . . Hacking | -11 -10 -10 -10 --------- Run | Yrd Mat Min Sub Machines Accessed 9 | . 8 1 . Terminals 5 | . 5 . . Fabricators . | . . . . Repair Stations 1 | . 1 . . Recycling Units 2 | . 2 . . Scanalyzers . | . . . . Garrison Access . | . . . . Total Hacks 23 | . 22 1 . Successful 16 | . 15 1 . Failed 7 | . 7 . . Catastrophic 1 | . 1 . . Database Lockouts . | . . . . Manual 16 | . 16 . . Terminals 16 | . 16 . . Fabricators . | . . . . Repair Stations 2 | . 2 . . Recycling Units 4 | . 4 . . Scanalyzers . | . . . . Garrison Access . | . . . . Terminal Hacks 6 | . 5 1 . Prototype ID Bank 2 | . 2 . . Open Door 1 | . . 1 . Branch Access Points 1 | . 1 . . Locate Traps 1 | . 1 . . Hauler Manifests 1 | . 1 . . Fabricator Hacks . | . . . . Repair Station Hacks 2 | . 2 . . Scan Component 1 | . 1 . . Repair 1 | . 1 . . Recycling Unit Hacks 2 | . 2 . . Report Inventory 2 | . 2 . . Scanalyzer . | . . . . Garrison Access Hacks . | . . . . Unauthorized Hacks 6 | . 6 . . Terminals 4 | . 4 . . Botnet 4 | . 4 . . Fabricators . | . . . . Repair Stations . | . . . . Recycling Units 2 | . 2 . . Tunnel 2 | . 2 . . Scanalyzers . | . . . . Garrison Access . | . . . . Data Cores Recovered . | . . . . Used . | . . . . Hacking Detections 5 | . 5 . . Full Trace Events . | . . . . Feedback Events . | . . . . Feedback Blocked . | . . . . Robot Schematics Acquired . | . . . . Robots Built . | . . . . Authchips . | . . . . Time . | . . . . Total Robot Build Rating . | . . . . Part Schematics Acquired . | . . . . Parts Built . | . . . . Authchips . | . . . . Time . | . . . . Total Part Build Rating . | . . . . Parts Repaired 1 | . 1 . . Time 38 | . 38 . . Parts Recycled . | . . . . Recycled Matter . | . . . . Retrieved Matter . | . . . . Retrieved Components . | . . . . Parts Scanalyzed . | . . . . Part Schematics Acquired . | . . . . Parts Damaged . | . . . . Bothacking | -11 -10 -10 -10 ------------ Run | Yrd Mat Min Sub Used RIF Installer . | . . . . Robots Hacked . | . . . . Non-combat . | . . . . Combat . | . . . . Robot Hacks Applied . | . . . . Relay Couplers Released . | . . . . Fabnet Peak Effective % . | . . . . Robots Rewired . | . . . . Allies Hacked . | . . . . Hacks Repelled . | . . . . Allies | -11 -10 -10 -10 -------- Run | Yrd Mat Min Sub Total Allies . | . . . . Largest Group . | . . . . Highest-Rated Group . | . . . . Highest-Rated Ally . | . . . . Total Orders . | . . . . Ally Attacks . | . . . . Total Damage . | . . . . Kills . | . . . . Allies Corrupted . | . . . . Allies Melted . | . . . . Intel | -11 -10 -10 -10 ------- Run | Yrd Mat Min Sub Robot Analysis Total . | . . . . Derelict Logs Recovered 1 | . . . 1 Drone Launches . | . . . . Drone Recoveries . | . . . . Exploration | -11 -10 -10 -10 ------------- Run | Yrd Mat Min Sub Turns Passed 4356 | 133 1462 1952 809 Spaces Moved 1798 | 69 466 809 454 Core 15 | 15 . . . Treads 855 | 54 466 335 . Legs 489 | . . 447 42 Wheels 439 | . . 27 412 Hover . | . . . . Flight . | . . . . Fastest Speed 50 | 50 160 145 145 Average Speed 193 | 136 217 209 149 Slowest Speed 320 | 160 240 320 190 Overloaded Moves . | . . . . Propulsion Burnouts . | . . . . Robots Hopped . | . . . . Cave-ins Triggered . | . . . . Exploration Rate (%) 56 | 5 79 93 47 Regions Visited 3 Branch Regions 2 Pre-discovered Areas 2 | . 2 . . Known Exits Taken 1 | . 1 . . Unknown Exits Taken 2 | 1 . 1 . Scrap Searched 2 | . . . 2 Spaces Dug . | . . . . Terrain Destroyed 6 | . . 6 . Melee . | . . . . Projectile 6 | . . 6 . AOE . | . . . . Terrain Rammed . | . . . . Walls Destroyed . | . . . . Machines Disabled . | . . . . Actions | -11 -10 -10 -10 --------- Run | Yrd Mat Min Sub Total 2430 | 92 800 1008 530 Wait 423 | . 257 133 33 Move 1795 | 68 465 808 454 Hop . | . . . . Pick Up 47 | 8 15 19 5 Fast Attach . | . . . . Attach 17 | 7 1 4 5 Detach . | . . . . Swap 5 | . 2 2 1 Drop 14 | . 2 9 3 Fire 129 | 9 58 33 29 Melee . | . . . . Ram . | . . . . Kick . | . . . . Crush . | . . . . Escape Stasis . | . . . . Rewire . | . . . . Trap . | . . . . Miscellaneous . | . . . . Route ------- -11/Scrapyard -10/Materials (discovered 3 exits: [*Mat x2] / *Min) -10/Mines (discovered 3 exits: [*Mat] / [*Exi] / [*Sub]) -10/Subcaves (discovered 2 exits: [*Mat] / Rec) History --------- Turn | Location | Event 8 | -11/Scrapyard | Discovered new exit (range 15) 134 | -11/Scrapyard | Entered Materials 310 | -10/Materials | Build established: Mutant 343 | -10/Materials | Discovered new exit (range 7) 749 | -10/Materials | Identified exit to Mines 921 | -10/Materials | Discovered new exit (range 4) 992 | -10/Materials | Repaired Machine Analyzer 1596 | -10/Materials | Entered Mines 1871 | -10/Mines | Assembled infested the area 2034 | -10/Mines | Met a Derelict who couldn't figure out how to use a Trap Extractor 2067 | -10/Mines | Core integrity fell below 50% 2611 | -10/Mines | Destroyed YI-UF0 2827 | -10/Mines | Discovered new exit (range 14) 2969 | -10/Mines | Deemed a non-threat by the Exiles lab entrance 2969 | -10/Mines | Discovered new exit (range 5) 3205 | -10/Mines | Discovered new exit (range 14) 3303 | -10/Mines | A weapon hastily lodged in a ceiling crevice suddenly fell to the ground 3548 | -10/Mines | Entered Subcaves 3583 | -10/Subcaves | A swath of the cavern ceiling suddenly collapsed 3630 | -10/Subcaves | Ambushed by Subdwellers from Twisted Machinery 3691 | -10/Subcaves | Discovered new exit (range 11) 3733 | -10/Subcaves | A swath of the cavern ceiling suddenly collapsed 3758 | -10/Subcaves | Core integrity fell below 20% 3814 | -10/Subcaves | Shifting Twisted Machinery released Sub. Laser 3822 | -10/Subcaves | Identified exit to Recycling 4357 | -10/Subcaves | Destroyed by NN-2O2(R) with Subdweller Machine Gun Last Messages --------------- 04006_ Acquired 49 matter. 04060_ Acquired 2 matter. 04175_ Sub. Power Source shoots sparks and powers down. 04266_ QB-LXO(R): "LEAVESUB!" 04273_ Acquired 8 matter. 04276_ Acquired 2 matter. 04281_ Destroyed Scrap Shield. 04284_ QB-LXO(R) destroyed. 04293_ Acquired 1 matter. 04294_ Acquired 4 matter. 04297_ Acquired 21 matter. 04306_ Dropped Broken Sub. Power Source. 04306_ Dropped ECM Suite. 04307_ Acquired Sub. Power Source. 04336_ Imp. Light Cannon destroyed. 04340_ IJ-QX2(R) knocked back. 04343_ IJ-QX2(R) destroyed. 04346_ NN-2O2(R) knocked back. 04352_ NN-2O2(R) affixes Scrap Shield Fragment to Scrap Shield. 04355_ NN-2O2(R) knocked back. Map ----- +----------------------------------------------------+ | ?????????????????????????????????????????????? | | ?????????????????????????????????????????????? | | ?????????????????????????????????????????????? | | ?????????????????????????????????????????????? | | ?????????????????????????????????????????????? | | ?????????????????????????????????????????????? | | ?????????????????????????????????????????????? | | ?????????????????????????????????????????????? | | ?????????????????????????????????????????????? | | ?????????????????????????????????????????????? | | ?????????????????????????????????????????????? | | ?????????????????????????????????????????????? | | ?????????????????????????????????????????????? | | ??????????????????#?????? ???????????????????? | | ?????????????????## ???#""???????????????????? | | ?????????????????# #?##" ???????????????????? | | ?????????????????# ##"R"???????????????????? | | ?????????????????? %&% ???????????????????? | | ??????????????????? % #???????????????????? | | ???????????????????? #???????????????????? | | ????????????????????# ##??????????????????? | | ????????????????????# #??????????????????? | | ????????????????????# ##?????????????????? | | ????????????????????# #?????????????????? | | ???????????????#??????# #?????????????????? | | ???????????????# ?????## @##?????????????????? | | ???????????????# ??????# ####???????????????? | | ??????????????## ????## ##??????????????? | | ??????????????# #???# #??????????????? | | ??????? ??????# #??## ##?????????????? | | ??????? ???????# #### #?????????????? | | ??????? ?????????# ##?????????????? | | ??????# #????????# ##?????????????? | | ??????# #????????## #?????????????? | | ??????# #?????????# " #?????????????? | | ?????# #????????## !""" ##?????????????? | | # ???## ????????# * "" ##?????????????? | | ??## ####?????# !%% #?????????????? | | ??# #???### % % ##?????????????? | | ?# %#???#% ## #??????????????? | | %?# #???# % = ##? ##?????????????? | | ?# #???## ## #?????????????? | | ?# ########## ###?????????????? | | ## % % # # # ## ###???????????????? | | % % =%=% #?????????????????? | | # = % # #????????????????? | | ## % % % ## ## # #???????????????? | | ?## ### ###### ## #??????????????? | | #?## ###?###???# ## #??????????????? | | #?# #???????? # #?????????????? | +----------------------------------------------------+ Best States ------------- Heat Dissipation 25 Energy Generation 15 Energy Capacity 250 Matter Stores 300 Matter Capacity 300 Sight Range 16 Terrain Scan Density 10 Armor Coverage 100 Resistance: KI 20 Resistance: TH 20 Resistance: EX 20 Resistance: EM 20 Resistance: I 20 Resistance: S 20 Resistance: P 20 Evasion (%) 50 Recoil Reduction 2 Offensive Hacking 10 Item Schematics ----------------- None Robot Schematics ------------------ None Fabricated ------------ Nothing Alien Tech Used ----------------- None Achievements -------------- None Challenges ------------ None Game ------ Seed ImprovedComponentClaws Manual? 0 Play Time 00:21:20 Cumulative 85.8 hours Start 2024.09.27 @ 18:39:02 End 2024.09.27 @ 19:13:59 Sessions 1 Manual Loads 0 Difficulty Adventurer Special Mode None Game No. 60 Rogue 0 Adventurer 60 Explorer 0 Win Type - Total 0 Types 0/0/0/0/0/0/0/0/0 Lore% 21 Gallery% 42 Achievement% 35 Wizard Run 0 Options --------- Layout 0 ASCII 0 Keyboard 0 Movement Mouse Keybinds 0 Fullscreen 1 Font 18/SmallcapsGlow Map View 76x50 Zoom Use 0% Tactical HUD 1 Map Filters NONE Filters NONE Steam 1 RUN: 333dbca0-ac10-4c6b-b436-64ef876b0693